bitfinex/quotes_BTCUSD_20250907
["timestamp","ask_amount","ask_price","bid_price","bid_amount"]
[1757265373179,0.33235321,111140.0,111130.0,0.24340091]
[1757265374056,0.54090822,111130.0,111120.0,0.00052861]
[1757265374368,1.32205524,111130.0,111120.0,0.00052861]
[1757265374584,1.29405742,111130.0,111120.0,0.00052861]
[1757265374804,1.22732635,111130.0,111120.0,0.00052861]
[1757265375220,1.25434844,111130.0,111120.0,0.00052861]
[1757265375895,1.25634844,111130.0,111120.0,0.00052861]
[1757265376621,0.8155263,111130.0,111120.0,0.00052861]
[1757265376890,1.03593737,111130.0,111120.0,0.00052861]
[1757265377680,1.03793737,111130.0,111120.0,0.00052861]
[1757265377879,1.25834844,111130.0,111120.0,0.00052861]
[1757265381536,1.10466844,111130.0,111120.0,0.00052861]
[1757265381935,1.25838844,111130.0,111120.0,0.00052861]
[1757265383075,1.10466844,111130.0,111120.0,0.00362861]
[1757265383282,1.25838844,111130.0,111120.0,0.00362861]
[1757265383915,1.25838844,111130.0,111120.0,0.00052861]
[1757265385190,1.05665837,111130.0,111120.0,0.00052861]
[1757265385391,1.23662777,111130.0,111120.0,0.00052861]
[1757265400492,0.79580563,111130.0,111120.0,0.00052861]
[1757265400710,1.23662777,111130.0,111120.0,0.00052861]
[1757265403381,1.25602982,111130.0,111120.0,0.00052861]
[1757265410793,1.32514982,111130.0,111120.0,0.00052861]
[1757265416304,1.32474982,111130.0,111120.0,0.00052861]
[1757265419710,1.32475281,111130.0,111120.0,0.00052861]
[1757265421517,1.30534777,111130.0,111120.0,0.00052861]
[1757265421697,1.32475279,111130.0,111120.0,0.00052861]
[1757265422107,1.30534777,111130.0,111120.0,0.00052861]
[1757265425884,1.32475282,111130.0,111120.0,0.00052861]
[1757265426500,1.30534777,111130.0,111120.0,0.00052861]
[1757265427958,1.30518777,111130.0,111120.0,0.00052861]
[1757265428524,1.0849263,111130.0,111120.0,0.00052861]
[1757265428891,1.32642579,111130.0,111120.0,0.00052861]
[1757265431356,0.88530445,111130.0,111120.0,0.00052861]
[1757265431659,1.32642579,111130.0,111120.0,0.00052861]
[1757265432608,1.32642579,111130.0,111120.0,1e-08]
[1757265432609,1.34582817,111130.0,111120.0,1e-08]
[1757265437341,1.34590817,111130.0,111120.0,1e-08]
[1757265438272,1.19266817,111130.0,111120.0,1e-08]
[1757265438475,1.10440868,111130.0,111120.0,0.00513001]
[1757265438691,0.86444563,111130.0,111120.0,0.00513001]
[1757265438900,1.0852863,111130.0,111120.0,0.00513001]
[1757265440490,1.0852863,111130.0,111120.0,0.00303001]
[1757265441588,0.9317663,111130.0,111120.0,0.00503001]
[1757265441846,1.0852863,111130.0,111120.0,0.00503001]
[1757265444517,1.0852863,111130.0,111120.0,0.00303001]
[1757265446683,0.1799856,111120.0,111110.0,0.0004]
[1757265446895,0.98598226,111120.0,111110.0,0.0004]
[1757265447104,0.98598226,111120.0,111110.0,0.0024]
[1757265447723,0.79244133,111120.0,111110.0,0.0024]
[1757265448138,1.014002,111120.0,111110.0,0.0024]
[1757265448385,1.015812,111120.0,111110.0,0.0004]
[1757265448799,1.016812,111120.0,111110.0,0.00351]
[1757265451756,1.02596951,111120.0,111110.0,0.00351]
[1757265452229,1.24653018,111120.0,111110.0,0.00351]
[1757265453572,1.24653018,111120.0,111110.0,0.0004]
[1757265454012,1.02596951,111120.0,111110.0,0.00351]
[1757265454453,1.02596951,111120.0,111110.0,0.00551]
[1757265455169,0.79444133,111120.0,111110.0,0.00551]
[1757265455389,1.015002,111120.0,111110.0,0.00551]
[1757265456313,1.016812,111120.0,111110.0,0.00551]
[1757265456775,1.02565917,111120.0,111110.0,0.00551]
[1757265460137,1.02384917,111120.0,111110.0,0.00551]
[1757265461082,1.02565917,111120.0,111110.0,0.0004]
[1757265461723,0.8050985,111120.0,111110.0,0.0004]
[1757265461923,1.24621984,111120.0,111110.0,0.0004]
[1757265463154,1.02565917,111120.0,111110.0,0.0004]
[1757265464805,1.02565917,111120.0,111110.0,0.00351]
[1757265466194,1.02565917,111120.0,111110.0,0.0004]
[1757265468842,1.02678917,111120.0,111110.0,0.0004]
[1757265469751,1.02565917,111120.0,111110.0,0.0004]
[1757265471409,0.8050985,111120.0,111110.0,0.0004]
[1757265471616,1.02565917,111120.0,111110.0,0.0004]
[1757265473740,1.02678917,111120.0,111110.0,0.0004]
[1757265475827,1.02565917,111120.0,111110.0,0.0004]
[1757265476877,0.8050985,111120.0,111110.0,0.0004]
[1757265477082,1.02565917,111120.0,111110.0,0.0004]
[1757265478490,1.02666917,111120.0,111110.0,0.0004]
[1757265478903,1.26816866,111120.0,111110.0,0.0004]
[1757265480609,0.42150129,111110.0,111100.0,0.00044]
[1757265480807,0.66701728,111110.0,111100.0,0.00044]
[1757265481007,0.66995728,111110.0,111100.0,0.00044]
[1757265481397,0.67356089,111110.0,111100.0,0.00044]
[1757265482408,0.45300022,111110.0,111100.0,0.00044]
[1757265482641,0.67356089,111110.0,111100.0,0.00044]
[1757265483222,0.67456089,111110.0,111100.0,0.00044]
[1757265485388,0.7148103,111110.0,111100.0,0.00044]
[1757265490400,0.93557121,111110.0,111100.0,0.00044]
[1757265492275,0.93436121,111110.0,111100.0,0.00044]
[1757265492490,0.93549121,111110.0,111100.0,0.00044]
[1757265497522,0.71636256,111110.0,111100.0,0.00044]
[1757265497759,0.45492278,111110.0,111100.0,0.00044]
[1757265497969,0.89624436,111110.0,111100.0,0.00044]
[1757265498208,0.89624436,111110.0,111100.0,1e-08]
[1757265499620,0.3224616,111110.0,111100.0,1e-08]
[1757265499851,0.91726318,111110.0,111100.0,1e-08]
[1757265501362,0.74284436,111110.0,111100.0,1e-08]
[1757265501592,0.89539436,111110.0,111100.0,1e-08]
[1757265501813,0.30039278,111110.0,111100.0,0.2260208]
[1757265502036,0.45250278,111110.0,111100.0,0.00536001]
[1757265502290,0.5200342,111090.0,111080.0,0.0004]
[1757265502529,1.12239177,111090.0,111080.0,0.0004]
[1757265502814,1.27840177,111090.0,111080.0,0.0004]
[1757265503050,1.28202177,111090.0,111080.0,0.0004]
[1757265503280,1.28315177,111090.0,111080.0,0.0004]
[1757265503717,1.28315177,111090.0,111080.0,0.00048342]
[1757265504177,1.28515177,111090.0,111080.0,0.00048342]
[1757265505739,1.28715177,111090.0,111080.0,0.00048342]
[1757265506193,1.13295177,111090.0,111080.0,0.00048342]
[1757265506416,1.28590177,111090.0,111080.0,0.00048342]
[1757265506660,0.84458019,111090.0,111080.0,0.00048342]
[1757265506897,0.84277019,111090.0,111080.0,0.00584342]
[1757265507123,1.06343098,111090.0,111080.0,0.00584342]
[1757265507574,1.06524098,111090.0,111080.0,0.00584342]
[1757265507800,1.06524098,111090.0,111080.0,0.00048342]
[1757265508491,0.84458019,111090.0,111080.0,0.00048342]
[1757265508710,1.06524098,111090.0,111080.0,0.00048342]
[1757265509094,1.06324098,111090.0,111080.0,0.00048342]
[1757265509522,1.06124098,111090.0,111080.0,0.00048342]
[1757265509718,1.06224098,111090.0,111080.0,0.00048342]
[1757265509971,0.84158019,111090.0,111080.0,0.00048342]
[1757265510189,1.06224098,111090.0,111080.0,0.00048342]
[1757265510450,1.06324098,111090.0,111080.0,0.00048342]
[1757265510901,1.06224098,111090.0,111080.0,0.00048342]
[1757265511383,1.06324098,111090.0,111080.0,0.00048342]
[1757265515003,1.28503177,111090.0,111080.0,0.00048342]
[1757265515893,0.84258019,111090.0,111080.0,0.00048342]
[1757265516072,1.06324098,111090.0,111080.0,0.00048342]
[1757265527633,0.84258019,111090.0,111080.0,0.00048342]
[1757265527877,1.06324098,111090.0,111080.0,0.00048342]
[1757265532306,1.08263298,111090.0,111080.0,0.00048342]
[1757265532646,1.08263298,111090.0,111080.0,0.00562342]
[1757265532871,1.08263317,111090.0,111080.0,0.00562342]
[1757265533759,1.08263371,111090.0,111080.0,0.00562342]
[1757265534212,1.08183371,111090.0,111080.0,0.00562342]
[1757265534469,1.06063098,111090.0,111080.0,0.00562342]
[1757265534928,1.08002401,111090.0,111080.0,0.00048342]
[1757265535141,1.3024948,111090.0,111080.0,0.00048342]
[1757265535352,1.08183401,111090.0,111080.0,0.00048342]
[1757265538819,1.3024948,111090.0,111080.0,0.00048342]
[1757265539167,1.08183401,111090.0,111080.0,0.00048342]
[1757265539372,0.86117322,111090.0,111080.0,0.00048342]
[1757265539573,1.08183401,111090.0,111080.0,0.00048342]
[1757265540831,1.08183512,111090.0,111080.0,0.00048342]
[1757265541653,0.86117433,111090.0,111080.0,0.00048342]
[1757265541881,1.08183512,111090.0,111080.0,0.00048342]
[1757265542782,1.30362591,111090.0,111080.0,0.00048342]
[1757265542990,0.96137199,111080.0,111070.0,0.0014]
[1757265543212,1.22576238,111080.0,111070.0,0.00186458]
[1757265543468,1.22757238,111080.0,111070.0,0.00186458]
[1757265543681,0.9613882,111070.0,111060.0,0.0004]
[1757265543875,0.68631757,111070.0,111060.0,0.0004]
[1757265544110,0.86932419,111070.0,111060.0,0.0004]
[1757265544928,0.89636053,111070.0,111060.0,0.0004]
[1757265545372,0.52261974,111070.0,111060.0,0.0004]
[1757265545592,0.67452974,111070.0,111060.0,0.0004]
[1757265546048,0.29901895,111070.0,111060.0,0.00554]
[1757265546271,0.45201895,111070.0,111060.0,0.00554]
[1757265546903,0.67267974,111070.0,111060.0,0.00554]
[1757265547107,0.49299556,111070.0,111060.0,0.00554]
[1757265547337,0.71365635,111070.0,111060.0,0.00554]
[1757265547752,0.56065635,111070.0,111060.0,0.00554]
[1757265547933,0.71369635,111070.0,111060.0,0.00554]
[1757265548280,0.71369635,111070.0,111060.0,0.00654]
[1757265549575,0.49303556,111070.0,111060.0,0.00654]
[1757265549720,0.71369635,111070.0,111060.0,0.00654]
[1757265550495,0.49303556,111070.0,111060.0,0.00654]
[1757265551578,0.71376857,111070.0,111060.0,0.00654]
[1757265553794,0.71557857,111070.0,111060.0,0.0014]
[1757265554215,1.05557857,111070.0,111060.0,0.0014]
[1757265554429,1.05670857,111070.0,111060.0,0.0014]
[1757265561356,1.05670857,111070.0,111060.0,0.0004]
[1757265562568,1.05630857,111070.0,111060.0,0.0004]
[1757265564043,1.05730857,111070.0,111060.0,0.0004]
[1757265564251,0.9634617,111070.0,111060.0,0.0004]
[1757265565545,1.18419471,111070.0,111060.0,0.0004]
[1757265565735,1.26046089,111070.0,111060.0,0.0004]
[1757265565904,1.28139971,111070.0,111060.0,0.0004]
[1757265566286,1.28139971,111070.0,111060.0,1e-08]
[1757265566935,1.25298404,111070.0,111060.0,1e-08]
[1757265567134,1.30298404,111070.0,111060.0,1e-08]
[1757265567337,1.54755971,111070.0,111060.0,1e-08]
[1757265567553,0.52011527,111040.0,111030.0,0.0204]
[1757265567842,1.05448427,111040.0,111030.0,0.0204]
[1757265568054,1.05629427,111040.0,111030.0,0.0204]
[1757265568268,1.07836309,111040.0,111030.0,0.0204]
[1757265568479,1.2990961,111040.0,111030.0,0.0204]
[1757265568662,1.10540886,111040.0,111030.0,0.0204]
[1757265568899,1.10587322,111040.0,111030.0,0.0204]
[1757265569330,0.70870139,111040.0,111030.0,0.02246]
[1757265569555,0.18003013,111040.0,111030.0,0.24719301]
[1757265569764,0.15298436,111040.0,111030.0,0.4508445]
[1757265570409,0.33309963,111040.0,111030.0,0.4508445]
[1757265570831,0.33309963,111040.0,111030.0,0.4263245]
[1757265571049,0.33309963,111040.0,111030.0,0.24619301]
[1757265571267,0.42682562,111040.0,111030.0,0.0204]
[1757265571510,0.64755863,111040.0,111030.0,0.0214]
[1757265572138,0.64755863,111040.0,111030.0,0.0224]
[1757265572588,0.68787392,111040.0,111030.0,0.0214]
[1757265572822,0.68787392,111040.0,111030.0,0.0204]
[1757265573685,0.68787392,111040.0,111030.0,0.0214]
[1757265574144,0.69694283,111040.0,111030.0,0.0214]
[1757265574359,1.03807283,111040.0,111030.0,0.0214]
[1757265574574,1.02900392,111040.0,111030.0,0.0214]
[1757265575239,0.80714091,111040.0,111030.0,0.0204]
[1757265575486,1.02787392,111040.0,111030.0,0.0204]
[1757265575684,0.80714091,111040.0,111030.0,0.0204]
[1757265575918,1.02787392,111040.0,111030.0,0.0204]
[1757265576530,1.05491738,111040.0,111030.0,0.0204]
[1757265577224,1.05491738,111040.0,111030.0,0.0214]
[1757265578895,1.05604738,111040.0,111030.0,0.0214]
[1757265579099,1.05604738,111040.0,111030.0,0.0204]
[1757265579949,1.05491738,111040.0,111030.0,0.0204]
[1757265583067,1.05604738,111040.0,111030.0,0.0204]
[1757265583292,1.0769862,111040.0,111030.0,0.0204]
[1757265586885,1.0769862,111040.0,111000.0,2.06905]
[1757265586886,0.18016394,111010.0,111000.0,2.06645001]
[1757265587103,0.49556993,111010.0,111000.0,2.07151001]
[1757265587465,0.52261858,111010.0,111000.0,2.07151001]
[1757265587684,0.56382398,111010.0,111000.0,2.07151001]
[1757265588515,0.56382398,111010.0,111000.0,2.07451001]
[1757265588720,0.56382398,111010.0,111000.0,2.06945001]
[1757265589299,0.56382398,111010.0,111000.0,2.07245001]
[1757265589705,0.56382398,111010.0,111000.0,2.07451001]
[1757265589909,0.56201398,111010.0,111000.0,2.07651001]
[1757265591943,0.42889259,111010.0,111000.0,2.07651001]
[1757265592165,0.42889259,111010.0,111000.0,2.29724302]
[1757265592918,0.42889259,111010.0,111000.0,2.07651001]
[1757265597135,0.78326451,111010.0,111000.0,2.07145001]
[1757265598495,0.5625315,111010.0,111000.0,2.07145001]
[1757265598961,0.78326451,111010.0,111000.0,2.07145001]
[1757265599168,0.78439451,111010.0,111000.0,2.07145001]
[1757265599773,0.78439451,111010.0,111000.0,2.06845001]
[1757265600219,0.5625315,111010.0,111000.0,2.07145001]
[1757265600396,0.78326451,111010.0,111000.0,2.06845001]
[1757265600608,0.78326451,111010.0,111000.0,2.07045001]
[1757265601025,0.5625315,111010.0,111000.0,2.06845001]
[1757265601229,0.78326451,111010.0,111000.0,2.06845001]
[1757265601444,0.78326451,111010.0,111000.0,2.07045001]
[1757265601827,0.78326451,111010.0,111000.0,2.06845001]
[1757265602036,0.4082015,111010.0,111000.0,2.07045001]
[1757265602292,0.39964551,111010.0,111000.0,2.29432302]
[1757265602591,0.39964551,111010.0,111000.0,2.29532302]
[1757265602802,0.39964551,111010.0,111000.0,2.07459001]
[1757265604309,0.39964551,111010.0,111000.0,2.06945001]
[1757265604847,0.39964551,111010.0,111000.0,2.07459001]
[1757265606548,0.24712551,111010.0,111000.0,2.07459001]
[1757265606799,0.39964551,111010.0,111000.0,2.07459001]
[1757265608206,0.24712551,111010.0,111000.0,2.07459001]
[1757265608648,0.39964551,111010.0,111000.0,2.07459001]
[1757265609205,0.33268394,111010.0,111000.0,2.4755032]
[1757265609407,0.18016394,111010.0,111000.0,2.4986432]
[1757265609793,0.2071913,111020.0,111010.0,0.18016394]
[1757265609992,0.33266772,111020.0,111010.0,0.42917695]
[1757265610183,0.18014772,111020.0,111010.0,0.20844394]
[1757265610402,0.18014772,111020.0,111010.0,0.42917695]
[1757265610403,0.15252,111020.0,111010.0,0.42917695]
[1757265610609,0.15252,111020.0,111010.0,0.52109294]
[1757265610946,0.15252,111030.0,111020.0,0.18014772]
[1757265611197,0.15252,111030.0,111020.0,0.20842772]
[1757265611407,0.18958539,111040.0,111030.0,0.18013149]
[1757265611768,0.33309963,111040.0,111030.0,0.4291445]
[1757265612154,0.33309963,111040.0,111030.0,0.02828]
[1757265612780,0.33309963,111040.0,111030.0,0.25105178]
[1757265613434,0.33309963,111040.0,111030.0,0.25305178]
[1757265614060,0.33309963,111040.0,111030.0,0.00914]
[1757265614272,0.33309963,111040.0,111030.0,0.22991178]
[1757265615373,0.33309963,111040.0,111030.0,0.22591178]
[1757265615756,0.33309963,111040.0,111030.0,0.00914]
[1757265615977,0.33309963,111040.0,111030.0,0.00714]
[1757265616399,0.33309963,111040.0,111030.0,0.00614]
[1757265616841,0.33309963,111040.0,111030.0,0.00714]
[1757265617000,0.33309963,111040.0,111030.0,0.00939164]
[1757265617388,0.33309963,111040.0,111030.0,0.23016342]
[1757265617522,0.33309963,111040.0,111030.0,0.22791178]
[1757265618607,1.20949918,111040.0,111030.0,0.002]
[1757265618800,1.53264592,111040.0,111030.0,0.002]
[1757265619018,1.47825293,111040.0,111030.0,0.002]
[1757265619441,0.18016394,111010.0,111000.0,2.06959001]
[1757265619657,0.55341572,111010.0,111000.0,2.07159001]
[1757265620330,0.58046121,111010.0,111000.0,2.07159001]
[1757265620551,0.40968943,111010.0,111000.0,2.07159001]
[1757265621208,0.64167454,111010.0,111000.0,2.06645001]
[1757265621459,0.73359053,111010.0,111000.0,2.06745001]
[1757265622135,0.73359053,111010.0,111000.0,2.06845001]
[1757265623734,0.77420033,111010.0,111000.0,2.06845001]
[1757265624334,0.77420033,111010.0,111000.0,1.6566814]
[1757265624335,1.11533033,111010.0,111000.0,1.6566814]
[1757265624531,1.14523156,111010.0,111000.0,1.40812514]
[1757265624900,1.14523156,111010.0,111000.0,1.19851465]
[1757265625316,1.14523156,111010.0,111000.0,0.75596236]
[1757265625508,0.99275156,111010.0,111000.0,0.71267108]
[1757265625710,1.14523156,111010.0,111000.0,0.71367108]
[1757265625909,1.14523156,111010.0,111000.0,0.71267108]
[1757265626126,1.14523156,111010.0,111000.0,0.71167108]
[1757265626357,1.14823156,111010.0,111000.0,0.71167108]
[1757265627627,1.14827156,111010.0,111000.0,0.71167108]
[1757265627888,1.14827156,111010.0,111000.0,0.71267108]
[1757265628280,0.99575156,111010.0,111000.0,0.71267108]
[1757265628493,1.12620274,111010.0,111000.0,0.71167108]
[1757265628937,0.96672033,111010.0,111000.0,0.71167108]
[1757265629144,1.11743033,111010.0,111000.0,0.71704108]
[1757265629317,0.62491033,111010.0,111000.0,0.71704108]
[1757265629536,0.36768973,111010.0,111000.0,0.71704108]
[1757265629740,0.52020973,111010.0,111000.0,0.71704108]
[1757265629944,0.51720973,111010.0,111000.0,0.71704108]
[1757265630365,0.85920973,111010.0,111000.0,0.71704108]
[1757265631411,0.61277374,111010.0,111000.0,0.71704108]
[1757265631560,0.76329374,111010.0,111000.0,0.71704108]
[1757265631774,0.76629374,111010.0,111000.0,0.71704108]
[1757265632162,0.76429374,111010.0,111000.0,0.71704108]
[1757265633428,0.61177374,111010.0,111000.0,0.71704108]
[1757265633572,0.76429374,111010.0,111000.0,0.71704108]
[1757265634545,0.76429374,111010.0,111000.0,0.71167108]
[1757265634690,0.99627885,111010.0,111000.0,0.71167108]
[1757265635373,0.99627885,111010.0,111000.0,0.71489108]
[1757265635592,0.81611491,111010.0,111000.0,0.71489108]
[1757265635802,0.99627885,111010.0,111000.0,0.71167108]
[1757265636442,0.76610374,111010.0,111000.0,0.71167108]
[1757265636654,1.08819484,111010.0,111000.0,0.71167108]
[1757265638205,1.08932484,111010.0,111000.0,0.71167108]
[1757265638675,1.11026366,111010.0,111000.0,0.71167108]
[1757265641168,0.88008855,111010.0,111000.0,0.71167108]
[1757265641436,1.11026366,111010.0,111000.0,0.71167108]
[1757265642562,1.32220935,111010.0,111000.0,0.71167108]
[1757265646146,1.34926264,111010.0,111000.0,0.71167108]
[1757265649020,0.90714184,111010.0,111000.0,0.71167108]
[1757265649231,1.36861059,111010.0,111000.0,0.71167108]
[1757265650265,1.36857059,111010.0,111000.0,0.71167108]
[1757265653060,1.21609059,111010.0,111000.0,0.71167108]
[1757265653272,1.36857059,111010.0,111000.0,0.71167108]
[1757265655178,1.21609059,111010.0,111000.0,0.71167108]
[1757265655442,1.36857059,111010.0,111000.0,0.71167108]
[1757265657214,1.21609059,111010.0,111000.0,0.71167108]
[1757265657432,1.38537639,111010.0,111000.0,0.71167108]
[1757265657647,1.36857059,111010.0,111000.0,0.71167108]
[1757265658310,1.38537865,111010.0,111000.0,0.71167108]
[1757265658537,1.23289865,111010.0,111000.0,0.71167108]
[1757265658749,1.38537865,111010.0,111000.0,0.71167108]
[1757265660031,1.23289865,111010.0,111000.0,0.71167108]
[1757265660212,1.38537865,111010.0,111000.0,0.71167108]
[1757265660835,1.21082983,111010.0,111000.0,0.71167108]
[1757265661037,1.34650177,111010.0,111000.0,0.71167108]
[1757265661273,1.19402177,111010.0,111000.0,0.71167108]
[1757265661489,1.12544137,111010.0,111000.0,0.71167108]
[1757265661698,1.12544137,111010.0,111000.0,0.71482108]
[1757265661913,0.97296137,111010.0,111000.0,0.71482108]
[1757265662129,1.12544137,111010.0,111000.0,0.71167108]
[1757265662553,1.34650177,111010.0,111000.0,0.71167108]
[1757265664921,1.19402177,111010.0,111000.0,0.71167108]
[1757265665173,1.34650177,111010.0,111000.0,0.71167108]
[1757265665832,1.34650177,111010.0,111000.0,0.71482108]
[1757265666052,1.34650177,111010.0,111000.0,0.71167108]
[1757265666532,1.36332384,111010.0,111000.0,0.71167108]
[1757265668362,0.91939304,111010.0,111000.0,0.71685108]
[1757265668602,0.39074302,111010.0,111000.0,0.71685108]
[1757265668833,0.27177374,111010.0,111000.0,0.71685108]
[1757265669054,0.64531414,111010.0,111000.0,0.71685108]
[1757265669277,0.42425374,111010.0,111000.0,0.71685108]
[1757265669506,0.27177374,111010.0,111000.0,0.71685108]
[1757265669732,0.42425374,111010.0,111000.0,0.71685108]
[1757265670390,0.27177374,111010.0,111000.0,0.96378148]
[1757265670642,0.42437374,111010.0,111000.0,0.96378148]
[1757265670869,0.42437374,111010.0,111000.0,0.74272108]
[1757265671093,0.42437374,111010.0,111000.0,0.74072108]
[1757265673524,0.42437374,111010.0,111000.0,0.96178148]
[1757265674477,0.42437374,111010.0,111000.0,0.74072108]
[1757265674701,0.27177374,111010.0,111000.0,0.74072108]
[1757265674911,0.42437374,111010.0,111000.0,0.74072108]
[1757265675113,0.27177374,111010.0,111000.0,0.74072108]
[1757265675328,0.42433374,111010.0,111000.0,0.74072108]
[1757265675746,0.42333374,111010.0,111000.0,0.74072108]
[1757265676164,0.42333374,111010.0,111000.0,0.74172108]
[1757265678091,0.42333374,111010.0,111000.0,0.74272108]
[1757265678953,0.42333374,111010.0,111000.0,0.71885108]
[1757265680724,0.27077374,111010.0,111000.0,0.71885108]
[1757265680929,0.42381374,111010.0,111000.0,0.71885108]
[1757265685749,0.45085961,111010.0,111000.0,0.71885108]
[1757265685959,0.45077961,111010.0,111000.0,0.71885108]
[1757265686170,0.29781961,111010.0,111000.0,0.71885108]
[1757265686380,0.45081961,111010.0,111000.0,0.71885108]
[1757265689126,0.67174826,111010.0,111000.0,0.71885108]
[1757265689333,0.45081961,111010.0,111000.0,0.71885108]
[1757265695021,0.67174826,111010.0,111000.0,0.71367108]
[1757265695249,0.5445456,111010.0,111000.0,0.71367108]
[1757265695466,0.76547425,111010.0,111000.0,0.71367108]
[1757265696151,1.10547425,111010.0,111000.0,0.71367108]
[1757265696815,0.8845456,111010.0,111000.0,0.71367108]
[1757265697040,1.10547425,111010.0,111000.0,0.71367108]
[1757265697485,1.10547425,111010.0,111000.0,0.71167108]
[1757265697749,1.10547425,111010.0,111000.0,0.71267108]
[1757265697970,1.10547425,111010.0,111000.0,0.71167108]
[1757265698453,1.10647425,111010.0,111000.0,0.71167108]
[1757265699771,1.10647425,111010.0,111000.0,0.71267108]
[1757265700203,1.10647425,111010.0,111000.0,0.71167108]
[1757265700637,0.8855456,111010.0,111000.0,0.71167108]
[1757265700891,1.10647425,111010.0,111000.0,0.71167108]
[1757265703724,1.10647425,111010.0,111000.0,0.71267108]
[1757265704119,0.8855456,111010.0,111000.0,0.71167108]
[1757265704327,1.10647425,111010.0,111000.0,0.71167108]
[1757265704528,0.8855456,111010.0,111000.0,0.71167108]
[1757265704748,1.10647425,111010.0,111000.0,0.71167108]
[1757265705502,0.8855456,111010.0,111000.0,0.71167108]
[1757265705685,1.10647425,111010.0,111000.0,0.71167108]
[1757265706862,0.95347425,111010.0,111000.0,0.71167108]
[1757265707065,1.10723425,111010.0,111000.0,0.71167108]
[1757265709104,0.95347425,111010.0,111000.0,0.71167108]
[1757265709314,1.10711425,111010.0,111000.0,0.71167108]
[1757265709532,0.8861856,111010.0,111000.0,0.71167108]
[1757265709748,1.10711425,111010.0,111000.0,0.71167108]
[1757265711698,1.10824425,111010.0,111000.0,0.71167108]
[1757265712106,1.10711425,111010.0,111000.0,0.71167108]
[1757265712829,1.3291729,111010.0,111000.0,0.71167108]
[1757265713855,1.10824425,111010.0,111000.0,0.71167108]
[1757265715142,0.8873156,111010.0,111000.0,0.71167108]
[1757265715387,1.35011172,111010.0,111000.0,0.71167108]
[1757265721063,1.34987172,111010.0,111000.0,0.71167108]
[1757265721480,0.90801442,111010.0,111000.0,0.71167108]
[1757265721692,1.34987172,111010.0,111000.0,0.71167108]
[1757265722104,1.36922824,111010.0,111000.0,0.71167108]
[1757265722311,1.36922824,111010.0,111000.0,0.29223754]
[1757265722519,1.34987172,111010.0,111000.0,0.07136208]
[1757265722722,1.48460963,111010.0,111000.0,1e-08]
[1757265722931,1.33120963,111010.0,111000.0,1e-08]
[1757265723142,1.48468963,111010.0,111000.0,1e-08]
[1757265723572,1.48368963,111010.0,111000.0,1e-08]
[1757265724001,1.49168963,111010.0,111000.0,1e-08]
[1757265724633,1.48368963,111010.0,111000.0,1e-08]
[1757265724863,1.49568963,111010.0,111000.0,1e-08]
[1757265725100,1.06283233,111010.0,111000.0,1e-08]
[1757265726188,0.18022889,110970.0,110960.0,0.00296]
[1757265726394,0.49474488,110970.0,110960.0,0.00296]
[1757265726615,0.49482488,110970.0,110960.0,0.00506]
[1757265727040,0.27648664,110970.0,110960.0,0.00801]
[1757265727241,0.42996664,110970.0,110960.0,0.00801]
[1757265727453,0.43043043,110970.0,110960.0,0.00801]
[1757265727682,0.27695043,110970.0,110960.0,0.00801]
[1757265727884,0.43043043,110970.0,110960.0,0.00801]
[1757265728521,0.48043043,110970.0,110960.0,0.00801]
[1757265728924,0.48039043,110970.0,110960.0,0.00801]
[1757265729338,0.32695043,110970.0,110960.0,0.00801]
[1757265731625,0.52003102,110970.0,110960.0,0.00801]
[1757265732396,0.14672154,110970.0,110960.0,0.00801]
[1757265732621,0.27302379,110970.0,110960.0,0.43272378]
[1757265732845,0.11966379,110970.0,110960.0,0.43272378]
[1757265733075,0.27294379,110970.0,110960.0,0.21179513]
[1757265733354,0.27294379,110970.0,110960.0,0.43272378]
[1757265734045,0.27294379,110970.0,110960.0,0.43872378]
[1757265734480,0.29989268,110970.0,110960.0,0.21779513]
[1757265734700,0.29989268,110970.0,110960.0,0.43872378]
[1757265734920,0.45317268,110970.0,110960.0,0.43872378]
[1757265735378,0.45317268,110970.0,110960.0,0.43272378]
[1757265735592,0.45317268,110970.0,110960.0,0.21379513]
[1757265735840,0.27290379,110970.0,110960.0,0.43472378]
[1757265736061,0.45313268,110970.0,110960.0,0.43472378]
[1757265736282,0.27290379,110970.0,110960.0,0.43472378]
[1757265736506,0.27290379,110970.0,110960.0,0.43484903]
[1757265737143,0.27290379,110970.0,110960.0,0.43884903]
[1757265737778,0.27290379,110970.0,110960.0,0.43484903]
[1757265738179,0.27286379,110970.0,110960.0,0.43684903]
[1757265738311,0.11966379,110970.0,110960.0,0.65790293]
[1757265738547,0.27286379,110970.0,110960.0,0.65790293]
[1757265739583,0.11966379,110970.0,110960.0,0.65790293]
[1757265739788,0.27282379,110970.0,110960.0,0.65790293]
[1757265741309,0.20370379,110970.0,110960.0,0.65790293]
[1757265741765,0.05046379,110970.0,110960.0,0.65790293]
[1757265742047,0.05046379,110970.0,110960.0,0.74981892]
[1757265742048,0.20370379,110970.0,110960.0,0.74981892]
[1757265742296,0.05046379,110970.0,110960.0,0.30771112]
[1757265742506,0.20366379,110970.0,110960.0,0.74981892]
[1757265742714,0.05046379,110970.0,110960.0,0.74981892]
[1757265742925,0.20366379,110970.0,110960.0,0.74981892]
[1757265743161,0.05046379,110970.0,110960.0,0.74981892]
[1757265743371,0.20362379,110970.0,110960.0,0.74981892]
[1757265747038,0.05046379,110970.0,110960.0,0.30771112]
[1757265747263,0.20358379,110970.0,110960.0,0.74981892]
[1757265747484,0.00046379,110970.0,110960.0,0.74981892]
[1757265747696,0.15358379,110970.0,110960.0,0.74981892]
[1757265748378,0.15358379,110970.0,110960.0,0.30771112]
[1757265748624,0.15358379,110970.0,110960.0,0.74981892]
[1757265748852,0.15358379,110970.0,110960.0,0.30771112]
[1757265749067,0.33381268,110970.0,110960.0,0.21579513]
[1757265749298,0.38381268,110970.0,110960.0,0.43684903]
[1757265749723,0.38381268,110970.0,110960.0,0.2566039]
[1757265749936,0.34525937,110970.0,110960.0,0.2566039]
[1757265750148,0.34525937,110970.0,110960.0,0.43684903]
[1757265751918,0.34525937,110970.0,110960.0,0.21579513]
[1757265752132,0.34525937,110970.0,110960.0,0.43684903]
[1757265752341,0.38342889,110970.0,110960.0,0.43684903]
[1757265752557,0.2032,110970.0,110960.0,0.21579513]
[1757265752772,0.2032,110970.0,110960.0,0.43684903]
[1757265753182,0.05,110970.0,110960.0,0.43684903]
[1757265753400,0.2032,110970.0,110960.0,0.43684903]
[1757265753600,0.20308,110970.0,110960.0,0.43684903]
[1757265753821,0.05,110970.0,110960.0,0.43684903]
[1757265754000,0.38330889,110970.0,110960.0,0.43684903]
[1757265754333,0.20308,110970.0,110960.0,0.43684903]
[1757265754983,0.38330889,110970.0,110960.0,0.43684903]
[1757265755339,0.20308,110970.0,110960.0,0.43684903]
[1757265755955,0.38330889,110970.0,110960.0,0.43684903]
[1757265756338,0.4241339,110970.0,110960.0,0.21579513]